[Event "*** Titled Tuesday Blitz"]
[Site "Chess.com"]
[Date "2021.03.30"]
[Round "2"]
[White "anon481216"]
[Black "Chesswizard_2007"]
[Result "1-0"]
[WhiteElo "2511"]
[BlackElo "2707"]
[TimeControl "180+1"]
[EndTime "10:16:40 PDT"]
[Termination "anon481216 won by resignation"]

1. d4 {[%clk 0:03:00.9]} 1... Nf6 {[%clk 0:02:59.5]} 2. c4 {[%clk 0:03:00.5]}
2... e6 {[%clk 0:02:56.9]} 3. g3 {[%clk 0:03:00.8]} 3... Bb4+ {[%clk 0:02:55.2]}
4. Bd2 {[%clk 0:03:00.2]} 4... a5 {[%clk 0:02:54.7]} 5. Nf3 {[%clk 0:03:00.1]}
5... O-O {[%clk 0:02:54.4]} 6. Bg2 {[%clk 0:02:58.8]} 6... b6 {[%clk 0:02:53.8]}
7. O-O {[%clk 0:02:57]} 7... Bb7 {[%clk 0:02:53.7]} 8. Bf4 {[%clk 0:02:55.7]}
8... d5 {[%clk 0:02:51.6]} 9. c5 {[%clk 0:02:54.1]} 9... a4 {[%clk 0:02:42]} 10.
cxb6 {[%clk 0:02:45.7]} 10... cxb6 {[%clk 0:02:40.1]} 11. a3 {[%clk 0:02:45.9]}
11... Bd6 {[%clk 0:02:39.5]} 12. Bxd6 {[%clk 0:02:44.4]} 12... Qxd6 {[%clk
0:02:40.4]} 13. Nc3 {[%clk 0:02:44.6]} 13... Bc6 {[%clk 0:02:25.7]} 14. Ne5
{[%clk 0:02:42.8]} 14... Nfd7 {[%clk 0:02:23.5]} 15. Nxc6 {[%clk 0:02:40.7]}
15... Nxc6 {[%clk 0:02:17.1]} 16. Nxa4 {[%clk 0:02:39.6]} 16... Na5 {[%clk
0:02:17.3]} 17. Nc3 {[%clk 0:02:32.7]} 17... Nc4 {[%clk 0:02:15.5]} 18. Qc2
{[%clk 0:02:10.7]} 18... Rfc8 {[%clk 0:02:11.9]} 19. Rfc1 {[%clk 0:02:08.4]}
19... g6 {[%clk 0:02:04.6]} 20. e3 {[%clk 0:02:08.2]} 20... Kg7 {[%clk
0:02:02.6]} 21. Qe2 {[%clk 0:02:05.6]} 21... h5 {[%clk 0:02:00.4]} 22. e4 {[%clk
0:01:59.4]} 22... e5 {[%clk 0:01:06.2]} 23. dxe5 {[%clk 0:01:54.3]} 23... Ndxe5
{[%clk 0:01:00.3]} 24. exd5 {[%clk 0:01:49.1]} 24... Re8 {[%clk 0:00:46.4]} 25.
Ne4 {[%clk 0:01:40.2]} 25... Qxd5 {[%clk 0:00:35.6]} 26. Nf6 {[%clk 0:01:38.7]}
26... Qd8 {[%clk 0:00:12.6]} 27. Nxe8+ {[%clk 0:01:36.8]} 27... Qxe8 {[%clk
0:00:13.5]} 28. Rxc4 {[%clk 0:01:36]} 28... Nxc4 {[%clk 0:00:13.5]} 29. Qxc4
{[%clk 0:01:35.9]} 29... Rc8 {[%clk 0:00:12.1]} 30. Qd4+ {[%clk 0:01:35.3]}
30... Kg8 {[%clk 0:00:12.7]} 31. Qxb6 {[%clk 0:01:26.1]} 31... Qe5 {[%clk
0:00:11.7]} 32. Rd1 {[%clk 0:01:13]} 32... Rb8 {[%clk 0:00:10.4]} 33. Rd8+
{[%clk 0:01:12.4]} 33... Rxd8 {[%clk 0:00:09.9]} 34. Qxd8+ {[%clk 0:01:12.9]}
34... Kg7 {[%clk 0:00:10.8]} 35. Qd2 {[%clk 0:01:11.6]} 35... Kg8 {[%clk
0:00:09.9]} 36. a4 {[%clk 0:01:11.1]} 36... h4 {[%clk 0:00:09.8]} 37. gxh4
{[%clk 0:01:10.3]} 37... f6 {[%clk 0:00:09]} 38. a5 {[%clk 0:01:10.3]} 38... Kg7
{[%clk 0:00:09]} 39. a6 {[%clk 0:01:10]} 39... Qc5 {[%clk 0:00:08.9]} 40. h3
{[%clk 0:01:06.5]} 40... g5 {[%clk 0:00:08.7]} 41. hxg5 {[%clk 0:01:06.2]} 41...
fxg5 {[%clk 0:00:09.6]} 42. Qc3+ {[%clk 0:01:05.9]} 1-0

[Event "*** Titled Tuesday Blitz"]
[Site "Chess.com"]
[Date "2021.03.30"]
[Round "2"]
[White "Vuk2000"]
[Black "Bacyanide"]
[Result "0-1"]
[WhiteElo "2724"]
[BlackElo "2418"]
[TimeControl "180+1"]
[EndTime "10:16:41 PDT"]
[Termination "Bacyanide won on time"]

1. d4 {[%clk 0:02:59.5]} 1... Nf6 {[%clk 0:02:58.9]} 2. Bg5 {[%clk 0:02:59.6]}
2... d5 {[%clk 0:02:56.8]} 3. Bxf6 {[%clk 0:02:59.5]} 3... exf6 {[%clk
0:02:57.7]} 4. e3 {[%clk 0:02:59.8]} 4... c6 {[%clk 0:02:57.3]} 5. c4 {[%clk
0:02:59.8]} 5... dxc4 {[%clk 0:02:58.2]} 6. Bxc4 {[%clk 0:03:00.2]} 6... Bd6
{[%clk 0:02:58.5]} 7. Nc3 {[%clk 0:03:00.5]} 7... O-O {[%clk 0:02:58.5]} 8. Nf3
{[%clk 0:03:00.6]} 8... Re8 {[%clk 0:02:58]} 9. O-O {[%clk 0:02:58.5]} 9... Nd7
{[%clk 0:02:57.7]} 10. Qb3 {[%clk 0:02:44.3]} 10... Qe7 {[%clk 0:02:56.8]} 11.
a4 {[%clk 0:02:32.2]} 11... Nb6 {[%clk 0:02:53.2]} 12. Bd3 {[%clk 0:02:30.6]}
12... Be6 {[%clk 0:02:53.3]} 13. Qc2 {[%clk 0:02:30.4]} 13... h5 {[%clk
0:02:51.2]} 14. Ne4 {[%clk 0:02:20.2]} 14... a5 {[%clk 0:02:49.1]} 15. Nxd6
{[%clk 0:02:16.8]} 15... Qxd6 {[%clk 0:02:50]} 16. h3 {[%clk 0:01:53.8]} 16...
Qd5 {[%clk 0:02:49.6]} 17. Ra3 {[%clk 0:01:22.7]} 17... Qd7 {[%clk 0:02:41.3]}
18. Rc3 {[%clk 0:01:16.1]} 18... Nd5 {[%clk 0:02:41.1]} 19. Rc5 {[%clk
0:01:15.7]} 19... Nb4 {[%clk 0:02:41.1]} 20. Qc3 {[%clk 0:00:55.3]} 20... g6
{[%clk 0:02:35.7]} 21. Bc4 {[%clk 0:00:48.5]} 21... Bxh3 {[%clk 0:02:18.9]} 22.
gxh3 {[%clk 0:00:41.2]} 22... b6 {[%clk 0:02:17.2]} 23. Bxf7+ {[%clk 0:00:10.3]}
23... Kxf7 {[%clk 0:02:04.3]} 24. Qb3+ {[%clk 0:00:09.2]} 24... Kg7 {[%clk
0:02:00.3]} 25. Rcc1 {[%clk 0:00:06.6]} 25... Qxh3 {[%clk 0:01:59.7]} 26. Nh2
{[%clk 0:00:07.2]} 26... Re4 {[%clk 0:01:54.5]} 27. f3 {[%clk 0:00:03.3]} 27...
Qg3+ {[%clk 0:01:48.4]} 28. Kh1 {[%clk 0:00:03.8]} 28... Rh4 {[%clk 0:01:48.4]}
29. Rc2 {[%clk 0:00:04.3]} 29... Nxc2 {[%clk 0:01:47.9]} 30. Qxc2 {[%clk
0:00:05.2]} 30... Re8 {[%clk 0:01:46.7]} 31. e4 {[%clk 0:00:05.4]} 31... Rd8
{[%clk 0:01:37.7]} 32. d5 {[%clk 0:00:02.7]} 32... cxd5 {[%clk 0:01:35.8]} 33.
exd5 {[%clk 0:00:03]} 33... Rxd5 {[%clk 0:01:34.7]} 34. Qe2 {[%clk 0:00:03.1]}
34... Re5 {[%clk 0:01:27.8]} 35. Qc2 {[%clk 0:00:02.3]} 35... Rc5 {[%clk
0:01:22.5]} 36. Qd2 {[%clk 0:00:01.8]} 36... Rxh2+ {[%clk 0:01:20]} 37. Qxh2
{[%clk 0:00:01.3]} 37... Qxh2+ {[%clk 0:01:20.9]} 38. Kxh2 {[%clk 0:00:01.6]}
38... Rc2+ {[%clk 0:01:21.8]} 39. Kg3 {[%clk 0:00:02.1]} 39... Rxb2 {[%clk
0:01:22.3]} 40. Rc1 {[%clk 0:00:02.2]} 40... Rb4 {[%clk 0:01:22.2]} 0-1

[Event "*** Titled Tuesday Blitz"]
[Site "Chess.com"]
[Date "2021.03.30"]
[Round "2"]
[White "scandalgod"]
[Black "yoelpolanco"]
[Result "1-0"]
[WhiteElo "2450"]
[BlackElo "2235"]
[TimeControl "180+1"]
[EndTime "10:16:42 PDT"]
[Termination "scandalgod won by resignation"]

1. d4 {[%clk 0:03:00.9]} 1... d5 {[%clk 0:02:58.7]} 2. c4 {[%clk 0:02:59.7]}
2... c6 {[%clk 0:02:58.5]} 3. cxd5 {[%clk 0:02:59.7]} 3... cxd5 {[%clk
0:02:59.4]} 4. Bg5 {[%clk 0:03:00]} 4... Nc6 {[%clk 0:03:00]} 5. Nc3 {[%clk
0:02:58.5]} 5... f6 {[%clk 0:02:52.8]} 6. e4 {[%clk 0:02:57.6]} 6... fxg5 {[%clk
0:02:48.1]} 7. exd5 {[%clk 0:02:50.5]} 7... Nb8 {[%clk 0:02:47.8]} 8. Nf3 {[%clk
0:02:43.1]} 8... Nf6 {[%clk 0:02:45]} 9. Nxg5 {[%clk 0:02:37]} 9... h6 {[%clk
0:02:39.1]} 10. Bb5+ {[%clk 0:02:31.7]} 10... Bd7 {[%clk 0:02:33.8]} 11. Bd3
{[%clk 0:02:23.3]} 11... Qa5 {[%clk 0:02:27.6]} 12. Bg6+ {[%clk 0:02:22.5]}
12... Kd8 {[%clk 0:02:27.7]} 13. Nf7+ {[%clk 0:02:19.2]} 13... Kc8 {[%clk
0:02:27.8]} 14. Nxh8 {[%clk 0:02:18.5]} 14... Nxd5 {[%clk 0:02:27.7]} 15. O-O
{[%clk 0:02:14.3]} 15... Nxc3 {[%clk 0:02:26]} 16. Rc1 {[%clk 0:02:08.5]} 16...
Nc6 {[%clk 0:02:21.9]} 17. Rxc3 {[%clk 0:02:03.2]} 17... e6 {[%clk 0:02:21.4]}
18. Nf7 {[%clk 0:01:56.1]} 18... Kb8 {[%clk 0:02:16.9]} 19. Ne5 {[%clk
0:01:50.3]} 19... Nxe5 {[%clk 0:02:16.7]} 20. dxe5 {[%clk 0:01:49.6]} 20... Bb5
{[%clk 0:02:14.3]} 21. Qc2 {[%clk 0:01:42.2]} 21... a6 {[%clk 0:02:09.6]} 22.
Rc8+ {[%clk 0:01:34.6]} 22... Ka7 {[%clk 0:02:09.1]} 23. Rxa8+ {[%clk
0:01:34.5]} 23... Kxa8 {[%clk 0:02:09.3]} 24. Qc8+ {[%clk 0:01:30.6]} 24... Ka7
{[%clk 0:02:09.2]} 25. Rc1 {[%clk 0:01:15.9]} 25... Qd2 {[%clk 0:02:02.8]} 26.
h3 {[%clk 0:00:59.8]} 26... Bc6 {[%clk 0:01:58.6]} 27. Rxc6 {[%clk 0:00:56.7]}
27... Qe1+ {[%clk 0:01:58.1]} 28. Kh2 {[%clk 0:00:55.3]} 28... Qxe5+ {[%clk
0:01:58.7]} 29. g3 {[%clk 0:00:52]} 29... bxc6 {[%clk 0:01:55.6]} 30. Qxf8
{[%clk 0:00:49.2]} 30... Qxb2 {[%clk 0:01:55.2]} 31. Qf7+ {[%clk 0:00:49.1]}
31... Kb6 {[%clk 0:01:53.9]} 32. Kg2 {[%clk 0:00:48.3]} 32... Qe5 {[%clk
0:01:50.9]} 33. Qf3 {[%clk 0:00:46.4]} 33... Qd5 {[%clk 0:01:49.8]} 34. Be4
{[%clk 0:00:46.1]} 34... Qc4 {[%clk 0:01:49.5]} 35. Qe3+ {[%clk 0:00:43.8]}
35... c5 {[%clk 0:01:48.6]} 36. Bf3 {[%clk 0:00:42.6]} 36... a5 {[%clk
0:01:45.9]} 37. a3 {[%clk 0:00:42.5]} 37... a4 {[%clk 0:01:45.1]} 38. Qe5 {[%clk
0:00:42.3]} 38... Qd4 {[%clk 0:01:43.7]} 39. Qb8+ {[%clk 0:00:40]} 39... Ka5
{[%clk 0:01:41.5]} 40. Qa7+ {[%clk 0:00:40]} 40... Kb5 {[%clk 0:01:41.7]} 41.
Qb7+ {[%clk 0:00:39.7]} 41... Kc4 {[%clk 0:01:41.5]} 42. Qa6+ {[%clk 0:00:34.5]}
42... Kc3 {[%clk 0:01:40.9]} 43. Qxe6 {[%clk 0:00:34.3]} 43... c4 {[%clk
0:01:36.7]} 44. Qe7 {[%clk 0:00:25.7]} 44... Kd2 {[%clk 0:01:35.1]} 45. Qb4+
{[%clk 0:00:22.2]} 45... Qc3 {[%clk 0:01:33.6]} 46. Qxa4 {[%clk 0:00:22.2]}
46... Qd3 {[%clk 0:01:29.8]} 47. Qb4+ {[%clk 0:00:20.3]} 47... c3 {[%clk
0:01:29]} 48. Be4 {[%clk 0:00:20.5]} 48... Qe2 {[%clk 0:01:24.4]} 49. Qd4+
{[%clk 0:00:20.5]} 49... Ke1 {[%clk 0:01:22.8]} 50. Qxc3+ {[%clk 0:00:20.2]}
50... Kd1 {[%clk 0:01:20]} 51. Bf3 {[%clk 0:00:19.5]} 1-0

[Event "*** Titled Tuesday Blitz"]
[Site "Chess.com"]
[Date "2021.03.30"]
[Round "2"]
[White "wonderfultime"]
[Black "iamnotIM"]
[Result "1-0"]
[WhiteElo "2985"]
[BlackElo "2592"]
[TimeControl "180+1"]
[EndTime "10:16:45 PDT"]
[Termination "wonderfultime won on time"]

1. d4 {[%clk 0:03:00.9]} 1... Nf6 {[%clk 0:02:59.7]} 2. Nf3 {[%clk 0:02:59.6]}
2... d5 {[%clk 0:02:58.5]} 3. Bf4 {[%clk 0:02:57.4]} 3... c5 {[%clk 0:02:58.6]}
4. c3 {[%clk 0:02:57.4]} 4... e6 {[%clk 0:02:58.9]} 5. e3 {[%clk 0:02:57.5]}
5... Bd6 {[%clk 0:02:59.1]} 6. Nbd2 {[%clk 0:02:57.1]} 6... Qc7 {[%clk
0:02:57.1]} 7. Bxd6 {[%clk 0:02:57.1]} 7... Qxd6 {[%clk 0:02:57]} 8. Ne5 {[%clk
0:02:58]} 8... Nc6 {[%clk 0:02:46.8]} 9. f4 {[%clk 0:02:58]} 9... Nd7 {[%clk
0:02:42.6]} 10. Bd3 {[%clk 0:02:57.1]} 10... Ne7 {[%clk 0:02:15.3]} 11. Qh5
{[%clk 0:02:50.8]} 11... g6 {[%clk 0:02:08.6]} 12. Qh6 {[%clk 0:02:48.6]} 12...
Nf5 {[%clk 0:01:49.9]} 13. Bxf5 {[%clk 0:02:23.9]} 13... exf5 {[%clk 0:01:49.8]}
14. Qg7 {[%clk 0:02:24.1]} 14... Qf6 {[%clk 0:01:37.3]} 15. Qxf6 {[%clk
0:02:24.3]} 15... Nxf6 {[%clk 0:01:38.2]} 16. dxc5 {[%clk 0:02:25]} 16... Nd7
{[%clk 0:01:34]} 17. Nxd7 {[%clk 0:02:22.8]} 17... Bxd7 {[%clk 0:01:34.9]} 18.
b4 {[%clk 0:02:15.6]} 18... Bb5 {[%clk 0:01:26.5]} 19. Kf2 {[%clk 0:02:03.8]}
19... f6 {[%clk 0:01:21.9]} 20. a4 {[%clk 0:02:02.4]} 20... Bd3 {[%clk
0:01:21.1]} 21. Nf3 {[%clk 0:01:58.8]} 21... Kf7 {[%clk 0:01:17.6]} 22. Rhd1
{[%clk 0:01:56.5]} 22... Be4 {[%clk 0:01:09.2]} 23. Nd4 {[%clk 0:01:56.8]} 23...
Rhc8 {[%clk 0:01:04.4]} 24. Nb5 {[%clk 0:01:56.7]} 24... Ke6 {[%clk 0:01:01.5]}
25. Nd6 {[%clk 0:01:52.8]} 25... Rc7 {[%clk 0:00:35.5]} 26. a5 {[%clk
0:01:52.9]} 26... Rd8 {[%clk 0:00:28.5]} 27. Nb5 {[%clk 0:01:46.8]} 27... Rcd7
{[%clk 0:00:14.4]} 28. Nxa7 {[%clk 0:01:46.8]} 28... g5 {[%clk 0:00:13.1]} 29.
a6 {[%clk 0:01:47]} 29... bxa6 {[%clk 0:00:12.7]} 30. Rxa6+ {[%clk 0:01:47.9]}
30... Kf7 {[%clk 0:00:13.3]} 31. Nb5 {[%clk 0:01:47.5]} 31... gxf4 {[%clk
0:00:12.7]} 32. exf4 {[%clk 0:01:47.9]} 32... Rg8 {[%clk 0:00:08.7]} 33. g3
{[%clk 0:01:48]} 33... h5 {[%clk 0:00:08.2]} 34. c4 {[%clk 0:01:43.7]} 34... h4
{[%clk 0:00:07.6]} 35. cxd5 {[%clk 0:01:42.7]} 35... hxg3+ {[%clk 0:00:07.1]}
36. hxg3 {[%clk 0:01:43.6]} 36... Rxd5 {[%clk 0:00:07.1]} 37. Nd6+ {[%clk
0:01:34.4]} 37... Kg6 {[%clk 0:00:06.8]} 38. Rxd5 {[%clk 0:01:33]} 38... Bxd5
{[%clk 0:00:07.7]} 39. b5 {[%clk 0:01:33.2]} 39... Rh8 {[%clk 0:00:06.9]} 40. c6
{[%clk 0:01:33.5]} 40... Rh2+ {[%clk 0:00:07.3]} 41. Ke3 {[%clk 0:01:33.8]}
41... Rc2 {[%clk 0:00:07.6]} 42. Kd4 {[%clk 0:01:27.3]} 42... Bf3 {[%clk
0:00:06]} 43. Nc4 {[%clk 0:01:26.8]} 43... Be2 {[%clk 0:00:05.6]} 44. Ra4 {[%clk
0:01:26.1]} 44... Bf3 {[%clk 0:00:01.5]} 45. Ra3 {[%clk 0:01:21.6]} 1-0

[Event "*** Titled Tuesday Blitz"]
[Site "Chess.com"]
[Date "2021.03.30"]
[Round "2"]
[White "shnitez"]
[Black "Fraler15"]
[Result "1-0"]
[WhiteElo "2457"]
[BlackElo "2251"]
[TimeControl "180+1"]
[EndTime "10:16:45 PDT"]
[Termination "shnitez won by resignation"]

1. c4 {[%clk 0:03:00.9]} 1... e5 {[%clk 0:02:59.8]} 2. Nc3 {[%clk 0:02:59.6]}
2... Nf6 {[%clk 0:02:59.8]} 3. Nf3 {[%clk 0:03:00]} 3... Nc6 {[%clk 0:02:58.5]}
4. e3 {[%clk 0:03:00.1]} 4... Bb4 {[%clk 0:02:58.6]} 5. Qc2 {[%clk 0:03:00.2]}
5... O-O {[%clk 0:02:57.8]} 6. Nd5 {[%clk 0:02:58.2]} 6... Bc5 {[%clk
0:02:54.9]} 7. Ng5 {[%clk 0:02:49.3]} 7... g6 {[%clk 0:02:39.2]} 8. h4 {[%clk
0:02:44.8]} 8... d6 {[%clk 0:02:31.9]} 9. Nxf6+ {[%clk 0:02:39.9]} 9... Qxf6
{[%clk 0:02:31.6]} 10. Ne4 {[%clk 0:02:40.5]} 10... Qf5 {[%clk 0:02:21.9]} 11.
a3 {[%clk 0:02:28.5]} 11... Re8 {[%clk 0:02:18]} 12. b4 {[%clk 0:02:20.9]} 12...
Bb6 {[%clk 0:01:47]} 13. Bb2 {[%clk 0:02:18.7]} 13... a5 {[%clk 0:01:27.2]} 14.
b5 {[%clk 0:01:44.9]} 14... Nd8 {[%clk 0:01:23]} 15. f3 {[%clk 0:01:38.1]} 15...
Qe6 {[%clk 0:00:53.2]} 16. c5 {[%clk 0:01:17.6]} 16... dxc5 {[%clk 0:00:51.8]}
17. Nxc5 {[%clk 0:01:07.5]} 17... Qe7 {[%clk 0:00:49.4]} 18. Ne4 {[%clk
0:01:02.1]} 18... f5 {[%clk 0:00:27]} 19. Bc4+ {[%clk 0:00:52.4]} 19... Kh8
{[%clk 0:00:26]} 20. f4 {[%clk 0:00:35.8]} 20... Nf7 {[%clk 0:00:09.9]} 21. Ng5
{[%clk 0:00:35.7]} 21... Kg7 {[%clk 0:00:02.1]} 22. Bxf7 {[%clk 0:00:30.2]}
22... Rd8 {[%clk 0:00:01.6]} 23. Bxe5+ {[%clk 0:00:28.6]} 23... Kf8 {[%clk
0:00:02.3]} 24. Ba2 {[%clk 0:00:24.2]} 24... Be6 {[%clk 0:00:01.6]} 25. Nxe6+
{[%clk 0:00:23.5]} 1-0

[Event "*** Titled Tuesday Blitz"]
[Site "Chess.com"]
[Date "2021.03.30"]
[Round "2"]
[White "mr_gustavo"]
[Black "pfalcon1949"]
[Result "1-0"]
[WhiteElo "2381"]
[BlackElo "1989"]
[TimeControl "180+1"]
[EndTime "10:16:46 PDT"]
[Termination "mr_gustavo won by checkmate"]

1. d4 {[%clk 0:03:00.9]} 1... Nf6 {[%clk 0:02:57.3]} 2. c4 {[%clk 0:03:00.2]}
2... e6 {[%clk 0:02:57.6]} 3. Nc3 {[%clk 0:02:52]} 3... Bb4 {[%clk 0:02:56.3]}
4. e3 {[%clk 0:02:46.9]} 4... O-O {[%clk 0:02:55.7]} 5. Nf3 {[%clk 0:02:46.7]}
5... b6 {[%clk 0:02:55.7]} 6. Bd3 {[%clk 0:02:41.7]} 6... Bxc3+ {[%clk
0:02:54.6]} 7. bxc3 {[%clk 0:02:41.3]} 7... Bb7 {[%clk 0:02:54.9]} 8. O-O {[%clk
0:02:40.3]} 8... d5 {[%clk 0:02:55.1]} 9. cxd5 {[%clk 0:02:39.8]} 9... Nxd5
{[%clk 0:02:52.6]} 10. Bb2 {[%clk 0:02:39.3]} 10... f5 {[%clk 0:02:51.5]} 11. c4
{[%clk 0:02:37]} 11... Nf6 {[%clk 0:02:50.1]} 12. Rc1 {[%clk 0:02:36.3]} 12...
Nbd7 {[%clk 0:02:49.7]} 13. Nd2 {[%clk 0:02:30.6]} 13... Ne4 {[%clk 0:02:47.3]}
14. Nxe4 {[%clk 0:02:28.1]} 14... fxe4 {[%clk 0:02:46.8]} 15. Be2 {[%clk
0:02:28.2]} 15... Nf6 {[%clk 0:02:46.5]} 16. Qd2 {[%clk 0:02:17.9]} 16... Qe7
{[%clk 0:02:45.9]} 17. Rfd1 {[%clk 0:02:12.2]} 17... Rad8 {[%clk 0:02:45.1]} 18.
Qc3 {[%clk 0:02:09.1]} 18... c5 {[%clk 0:02:37.8]} 19. dxc5 {[%clk 0:02:06.9]}
19... Qxc5 {[%clk 0:02:37.4]} 20. Ba3 {[%clk 0:02:05.3]} 20... Qf5 {[%clk
0:02:30.5]} 21. Bxf8 {[%clk 0:02:02.6]} 21... Rxf8 {[%clk 0:02:31.4]} 22. Rf1
{[%clk 0:02:00.7]} 22... e5 {[%clk 0:02:26.6]} 23. c5 {[%clk 0:01:55.6]} 23...
Nd5 {[%clk 0:02:19.1]} 24. Qb3 {[%clk 0:01:53.1]} 24... Qg6 {[%clk 0:01:46.1]}
25. c6 {[%clk 0:01:40.3]} 25... Bxc6 {[%clk 0:01:44.5]} 26. Rxc6 {[%clk
0:01:41.2]} 26... Qxc6 {[%clk 0:01:43.4]} 27. Bc4 {[%clk 0:01:42.1]} 27... Rd8
{[%clk 0:01:39.9]} 28. Rd1 {[%clk 0:01:41.4]} 28... Kf8 {[%clk 0:01:24]} 29.
Bxd5 {[%clk 0:01:39.1]} 29... Qc5 {[%clk 0:01:05.5]} 30. h3 {[%clk 0:01:37.1]}
30... a5 {[%clk 0:01:02.7]} 31. Kh2 {[%clk 0:01:33.9]} 31... a4 {[%clk
0:00:59.7]} 32. Qxa4 {[%clk 0:01:33.8]} 32... Ke7 {[%clk 0:00:40.1]} 33. Bxe4
{[%clk 0:01:30.3]} 33... Rxd1 {[%clk 0:00:39.8]} 34. Qxd1 {[%clk 0:01:30.8]}
34... g6 {[%clk 0:00:40.7]} 35. Qg4 {[%clk 0:01:30.2]} 35... b5 {[%clk
0:00:39.1]} 36. Qg5+ {[%clk 0:01:30.2]} 36... Kf7 {[%clk 0:00:38.5]} 37. Qd8
{[%clk 0:01:28.8]} 37... b4 {[%clk 0:00:38.3]} 38. Bd5+ {[%clk 0:01:28.6]} 38...
Kg7 {[%clk 0:00:38.2]} 39. e4 {[%clk 0:01:25.3]} 39... Qxf2 {[%clk 0:00:36.2]}
40. Qg5 {[%clk 0:01:25.8]} 40... Qd4 {[%clk 0:00:23.5]} 41. Qh4 {[%clk
0:01:24.3]} 41... Qe3 {[%clk 0:00:19]} 42. Qg3 {[%clk 0:01:22.9]} 42... Qd4
{[%clk 0:00:18.9]} 43. Qf3 {[%clk 0:01:18.7]} 43... Qb2 {[%clk 0:00:16.8]} 44.
h4 {[%clk 0:01:15.2]} 44... h5 {[%clk 0:00:09.8]} 45. Qf7+ {[%clk 0:01:10.9]}
45... Kh6 {[%clk 0:00:09.6]} 46. Qf8+ {[%clk 0:01:11.7]} 46... Kh7 {[%clk
0:00:09.2]} 47. Bg8+ {[%clk 0:01:12.1]} 47... Kh8 {[%clk 0:00:08.8]} 48. Bf7+
{[%clk 0:01:12.6]} 48... Kh7 {[%clk 0:00:08.3]} 49. Qg8+ {[%clk 0:01:13.5]}
49... Kh6 {[%clk 0:00:08.4]} 50. Qxg6# {[%clk 0:01:14.4]} 1-0

[Event "*** Titled Tuesday Blitz"]
[Site "Chess.com"]
[Date "2021.03.30"]
[Round "2"]
[White "Orlov_Oleg"]
[Black "mishanick"]
[Result "0-1"]
[WhiteElo "2593"]
[BlackElo "2978"]
[TimeControl "180+1"]
[EndTime "10:16:47 PDT"]
[Termination "mishanick won by checkmate"]

1. Nf3 {[%clk 0:03:00.9]} 1... d5 {[%clk 0:02:59.8]} 2. c4 {[%clk 0:03:00.9]}
2... d4 {[%clk 0:02:58.4]} 3. e3 {[%clk 0:03:00.9]} 3... Nc6 {[%clk 0:02:57.9]}
4. b4 {[%clk 0:03:00.4]} 4... dxe3 {[%clk 0:02:57.7]} 5. fxe3 {[%clk 0:03:00.5]}
5... Nxb4 {[%clk 0:02:58.4]} 6. Qa4+ {[%clk 0:03:00.9]} 6... Nc6 {[%clk
0:02:57.5]} 7. d4 {[%clk 0:03:01.8]} 7... Bd7 {[%clk 0:02:45.5]} 8. Qb3 {[%clk
0:03:01.7]} 8... b6 {[%clk 0:02:43.5]} 9. Bb2 {[%clk 0:03:00.1]} 9... Nf6 {[%clk
0:02:43.9]} 10. Nbd2 {[%clk 0:02:57.3]} 10... g6 {[%clk 0:02:43.7]} 11. e4
{[%clk 0:02:50.4]} 11... Bg7 {[%clk 0:02:43]} 12. e5 {[%clk 0:02:49.3]} 12...
Ng4 {[%clk 0:02:42.5]} 13. h3 {[%clk 0:02:48.8]} 13... Nh6 {[%clk 0:02:41.8]}
14. g4 {[%clk 0:02:48.5]} 14... O-O {[%clk 0:02:40.6]} 15. Bg2 {[%clk
0:02:48.5]} 15... f6 {[%clk 0:02:37.2]} 16. c5+ {[%clk 0:02:19]} 16... Kh8
{[%clk 0:02:34.7]} 17. e6 {[%clk 0:02:18.9]} 17... Na5 {[%clk 0:02:33.7]} 18.
Qe3 {[%clk 0:02:18.4]} 18... Bc6 {[%clk 0:02:33.8]} 19. O-O {[%clk 0:02:15.8]}
19... f5 {[%clk 0:02:29.1]} 20. d5 {[%clk 0:02:03.8]} 20... Qxd5 {[%clk
0:01:55.9]} 21. Bxg7+ {[%clk 0:01:23.5]} 21... Kxg7 {[%clk 0:01:56.8]} 22. cxb6
{[%clk 0:01:24]} 22... axb6 {[%clk 0:01:26.8]} 23. g5 {[%clk 0:01:14.4]} 23...
Ng4 {[%clk 0:01:06.2]} 24. hxg4 {[%clk 0:01:12.7]} 24... fxg4 {[%clk 0:01:06]}
25. Nh4 {[%clk 0:01:12.9]} 25... Qd6 {[%clk 0:00:56.8]} 26. Rxf8 {[%clk
0:01:03.8]} 26... Rxf8 {[%clk 0:00:56.2]} 27. Rf1 {[%clk 0:01:03.7]} 27... Rxf1+
{[%clk 0:00:48.3]} 28. Nxf1 {[%clk 0:01:03.6]} 28... Bxg2 {[%clk 0:00:46.6]} 29.
Nxg2 {[%clk 0:01:01.9]} 29... Nc4 {[%clk 0:00:45.4]} 30. Qc3+ {[%clk 0:00:59]}
30... Ne5 {[%clk 0:00:45.4]} 31. Nf4 {[%clk 0:00:59.4]} 31... Kg8 {[%clk
0:00:42.5]} 32. Kf2 {[%clk 0:00:56.9]} 32... Nf3 {[%clk 0:00:39.3]} 33. Ne2
{[%clk 0:00:52.2]} 33... Nxg5 {[%clk 0:00:37.6]} 34. Nd4 {[%clk 0:00:48.6]}
34... Ne4+ {[%clk 0:00:36.9]} 35. Ke3 {[%clk 0:00:46.9]} 35... Nxc3 {[%clk
0:00:37.8]} 36. Nd2 {[%clk 0:00:46.9]} 36... Nd5+ {[%clk 0:00:37.8]} 37. Ke4
{[%clk 0:00:46.7]} 37... Nf6+ {[%clk 0:00:38.1]} 38. Ke3 {[%clk 0:00:46.4]}
38... c5 {[%clk 0:00:39]} 39. Ne2 {[%clk 0:00:45.4]} 39... Qxe6+ {[%clk
0:00:37.2]} 40. Kf2 {[%clk 0:00:45.7]} 40... Ne4+ {[%clk 0:00:37.9]} 41. Nxe4
{[%clk 0:00:45.5]} 41... Qxe4 {[%clk 0:00:38.8]} 42. Ng3 {[%clk 0:00:45.1]}
42... Qf3+ {[%clk 0:00:39]} 43. Ke1 {[%clk 0:00:45]} 43... Qxg3+ {[%clk
0:00:39.9]} 44. Kd2 {[%clk 0:00:45]} 44... Qf3 {[%clk 0:00:40.8]} 45. a4 {[%clk
0:00:45.9]} 45... g3 {[%clk 0:00:41.7]} 46. a5 {[%clk 0:00:44.1]} 46... g2
{[%clk 0:00:42.6]} 47. Kc2 {[%clk 0:00:44.4]} 47... g1=Q {[%clk 0:00:43.5]} 48.
axb6 {[%clk 0:00:44.2]} 48... Qgg2+ {[%clk 0:00:44.4]} 49. Kc1 {[%clk
0:00:43.9]} 49... Qff1# {[%clk 0:00:45.3]} 0-1